bitfinex-derivatives/quotes_BTCF0:USTF0_20251025
["timestamp","ask_amount","ask_price","bid_price","bid_amount"]
[1761353419737,0.13612679,111000.0,110990.0,0.50473146]
[1761353419937,0.15944679,111000.0,110990.0,0.50673146]
[1761353429549,0.1351741,111000.0,110990.0,0.50673146]
[1761353430835,0.0900841,111000.0,110990.0,0.59681716]
[1761353431041,0.0900841,111000.0,110990.0,0.72545862]
[1761353433250,0.0900841,111000.0,110990.0,0.59681716]
[1761353436351,0.0900841,111000.0,110990.0,0.72545862]
[1761353437953,0.1124141,111000.0,110990.0,0.59681716]
[1761353438247,0.1336341,111000.0,110990.0,0.50673146]
[1761353438474,0.1471041,111000.0,110990.0,0.06177]
[1761353438647,0.1471041,111000.0,110990.0,0.3644]
[1761353438944,0.1471041,111000.0,110990.0,0.49304146]
[1761353439353,0.1471041,111000.0,110990.0,0.50614146]
[1761353439749,0.17137679,111000.0,110990.0,0.50614146]
[1761353442554,0.20371766,111000.0,110990.0,0.50614146]
[1761353443155,0.17944497,111000.0,110990.0,0.50614146]
[1761353444351,0.22799258,111000.0,110990.0,0.50614146]
[1761353446053,0.21452258,111000.0,110990.0,0.59622716]
[1761353448464,0.21452258,111000.0,110990.0,0.50614146]
[1761353452665,0.157941,111000.0,110990.0,0.53855834]
[1761353453476,0.19028187,111000.0,110990.0,0.53855834]
[1761353453666,0.20375187,111000.0,110990.0,0.49304146]
[1761353454563,0.20375187,111000.0,110990.0,0.17688146]
[1761353454762,0.20375187,111000.0,110990.0,0.49296146]
[1761353456674,0.20375187,111000.0,110990.0,0.49292885]
[1761353461275,0.16906187,111000.0,110990.0,0.6353877]
[1761353461475,0.19047187,111000.0,110990.0,0.6353877]
[1761353463477,0.19047187,111000.0,110990.0,0.50677885]
[1761353468486,0.20382187,111000.0,110990.0,0.50677885]
[1761353468675,0.20382187,111000.0,110990.0,0.49292885]
[1761353468977,0.20382187,111000.0,110990.0,0.002]
[1761353468978,0.72433056,111000.0,110990.0,0.002]
[1761353469167,0.85293941,111000.0,110990.0,0.002]
[1761353469372,0.72433056,111000.0,110990.0,0.002]
[1761353469574,1.16901941,111000.0,110990.0,0.002]
[1761353469780,0.1469138,110980.0,110970.0,0.47289885]
[1761353470078,0.20360906,110980.0,110970.0,0.47289885]
[1761353470279,0.17121177,110980.0,110970.0,0.47289885]
[1761353470470,0.17121177,110980.0,110970.0,0.17245885]
[1761353471170,0.17121177,110980.0,110970.0,0.17745885]
[1761353471878,0.17121177,110980.0,110970.0,0.04885]
[1761353472178,0.17121177,110980.0,110970.0,0.17245885]
[1761353473582,0.17221177,110980.0,110970.0,0.17245885]
[1761353476276,0.1479138,110980.0,110970.0,0.17245885]
[1761353476475,0.1345638,110980.0,110970.0,0.4040596]
[1761353476677,0.1345638,110980.0,110970.0,0.3139577]
[1761353484189,0.18217406,110980.0,110970.0,0.48857885]
[1761353484781,0.18217406,110980.0,110970.0,0.17245885]
[1761353484981,0.18217406,110980.0,110970.0,0.48857885]
[1761353497406,0.18217406,110980.0,110970.0,0.50158885]
[1761353499502,0.3431802,110980.0,110970.0,0.04385]
[1761353499806,0.1477619,110970.0,110960.0,0.17357885]
[1761353500109,0.30876804,110970.0,110960.0,0.17357885]
[1761353500407,0.20447187,110970.0,110960.0,0.17357885]
[1761353500598,0.33308072,110970.0,110960.0,0.17357885]
[1761353500793,0.30876804,110970.0,110960.0,0.17357885]
[1761353501207,0.2044671,110970.0,110960.0,0.17357885]
[1761353502094,0.2044671,110970.0,110960.0,0.17557885]
[1761353502307,0.30876804,110970.0,110960.0,0.02399]
[1761353502506,0.35736398,110970.0,110960.0,0.02399]
[1761353502709,0.75736398,110970.0,110960.0,0.02399]
[1761353503008,0.75736398,110970.0,110960.0,0.04697]
[1761353503209,0.62875513,110970.0,110960.0,0.04697]
[1761353503397,0.70876804,110970.0,110960.0,0.17557885]
[1761353504308,0.73305152,110970.0,110960.0,0.17557885]
[1761353507113,0.60444267,110970.0,110960.0,0.18858885]
[1761353507297,0.60444267,110970.0,110960.0,0.3171977]
[1761353508112,0.63464267,110970.0,110960.0,0.18858885]
[1761353508609,0.63464267,110970.0,110960.0,0.3171977]
[1761353509713,0.63464267,110970.0,110960.0,0.3041877]
[1761353512114,0.63464267,110970.0,110960.0,0.17557885]
[1761353514505,0.76325152,110970.0,110960.0,0.13060885]
[1761353514812,0.76325152,110970.0,110940.0,0.07738688]
[1761353514813,0.1477781,110950.0,110940.0,0.07738688]
[1761353515006,0.27638695,110950.0,110940.0,0.04497]
[1761353515209,0.1477781,110950.0,110940.0,0.17357885]
[1761353515912,0.1477781,110950.0,110940.0,0.18318961]
[1761353516416,0.1477781,110950.0,110940.0,0.17357885]
[1761353516718,0.1477781,110950.0,110940.0,0.04497]
[1761353517217,0.1477781,110950.0,110940.0,0.17870633]
[1761353517522,0.1477781,110950.0,110940.0,0.04997]
[1761353517712,0.1477781,110950.0,110940.0,0.17370633]
[1761353517918,0.1497781,110950.0,110940.0,0.18323698]
[1761353519217,0.17405233,110950.0,110940.0,0.18323698]
[1761353519406,0.1497781,110950.0,110940.0,0.18323698]
[1761353519606,0.1497781,110950.0,110940.0,0.05450065]
[1761353522227,0.1362981,110950.0,110940.0,0.28688288]
[1761353522524,0.1352981,110950.0,110940.0,0.28688288]
[1761353522825,0.1352981,110950.0,110940.0,0.19675698]
[1761353526424,0.27721443,110950.0,110940.0,0.02298]
[1761353526724,0.1492559,110940.0,110930.0,0.48948633]
[1761353526925,0.17351918,110940.0,110930.0,0.48948633]
[1761353528021,0.17351918,110940.0,110930.0,0.49048633]
[1761353528634,0.17351918,110940.0,110930.0,0.17428633]
[1761353528830,0.17351918,110940.0,110930.0,0.49048633]
[1761353529624,0.17351918,110940.0,110930.0,0.02272]
[1761353529829,0.30225551,110940.0,110930.0,0.33892]
[1761353530135,0.3346528,110940.0,110930.0,0.001]
[1761353530525,0.1492644,110930.0,110920.0,0.36075]
[1761353531431,0.1492644,110930.0,110920.0,0.04455]
[1761353531631,0.1492644,110930.0,110920.0,0.36175]
[1761353531832,0.1492644,110930.0,110920.0,0.04555]
[1761353532034,0.17352768,110930.0,110920.0,0.36175]
[1761353534230,0.17352768,110930.0,110920.0,0.04555]
[1761353534435,0.17352768,110930.0,110920.0,0.36175]
[1761353535734,0.17352768,110930.0,110920.0,0.33896]
[1761353535735,0.30226401,110930.0,110920.0,0.33896]
[1761353536036,0.30226401,110930.0,110920.0,0.36179]
[1761353536433,0.30226401,110930.0,110920.0,0.04555]
[1761353537337,0.17352768,110930.0,110920.0,0.04555]
[1761353540532,0.17352768,110930.0,110920.0,0.18780633]
[1761353541040,0.17352768,110930.0,110920.0,0.04555]
[1761353545047,0.1492803,110910.0,110900.0,0.05807]
[1761353545349,0.1492803,110910.0,110900.0,0.50308633]
[1761353545743,0.1492803,110910.0,110900.0,0.51240886]
[1761353546347,0.1492803,110910.0,110900.0,0.51640886]
[1761353549034,0.1492803,110910.0,110900.0,0.20012886]
[1761353549237,0.1492803,110910.0,110900.0,0.51640886]
[1761353552642,0.1361003,110910.0,110900.0,0.60656766]
[1761353552842,0.0901503,110910.0,110900.0,0.60656766]
[1761353553346,0.1344903,110910.0,110900.0,0.60656766]
[1761353554764,0.1344903,110910.0,110900.0,0.51640886]
[1761353556553,0.1344903,110910.0,110900.0,0.38767253]
[1761353556759,0.1344903,110910.0,110900.0,0.51640886]
[1761353557452,0.1344903,110910.0,110900.0,0.60656756]
[1761353560154,0.1344903,110910.0,110900.0,0.51640886]
[1761353561154,0.15875358,110910.0,110900.0,0.51640886]
[1761353561459,0.70041991,110910.0,110900.0,0.02572]
[1761353561647,0.1474288,110900.0,110890.0,0.04327973]
[1761353561948,0.35715836,110900.0,110890.0,0.04327973]
[1761353562952,0.35715836,110900.0,110890.0,0.04827973]
[1761353563151,0.35715836,110900.0,110890.0,0.02710973]
[1761353564250,0.20406955,110900.0,110890.0,0.04827973]
[1761353564556,0.20406955,110900.0,110890.0,0.04527973]
[1761353564749,0.33280588,110900.0,110890.0,0.00207973]
[1761353565054,0.30856242,110900.0,110890.0,0.00207973]
[1761353565442,0.1345232,110870.0,110860.0,0.17972828]
[1761353565648,0.1345232,110870.0,110860.0,0.09900756]
[1761353565850,0.1345232,110870.0,110860.0,0.06659068]
[1761353566051,0.1474532,110870.0,110860.0,0.06659068]
[1761353566251,0.1474532,110870.0,110860.0,0.38311068]
[1761353566452,0.14753293,110870.0,110860.0,0.36919068]
[1761353567349,0.14753293,110870.0,110860.0,0.37219068]
[1761353568158,0.14753293,110870.0,110860.0,0.50788701]
[1761353568756,0.14753293,110870.0,110860.0,0.37219068]
[1761353569060,0.14753293,110870.0,110860.0,0.50092701]
[1761353570658,0.14753293,110870.0,110860.0,0.50788701]
[1761353573165,0.14753293,110870.0,110860.0,0.37915068]
[1761353573466,0.14753293,110870.0,110860.0,0.50788701]
[1761353575064,0.14753293,110870.0,110860.0,0.37219068]
[1761353575265,0.14753293,110870.0,110860.0,0.50092701]
[1761353575564,0.14753293,110870.0,110860.0,0.0462]
[1761353576765,0.2764505,110870.0,110860.0,0.17511757]
[1761353576967,0.2764505,110870.0,110860.0,0.17211757]
[1761353579772,0.2764505,110870.0,110860.0,0.0432]
[1761353579971,0.2764505,110870.0,110860.0,0.17211757]
[1761353582579,0.14753293,110870.0,110860.0,0.17211757]
[1761353582977,0.14753293,110870.0,110860.0,0.30103514]
[1761353583178,0.14753293,110870.0,110860.0,0.30799514]
[1761353584075,0.14753293,110870.0,110860.0,0.30103514]
[1761353585679,0.14753293,110870.0,110860.0,0.0432]
[1761353585879,0.14753293,110870.0,110860.0,0.30103514]
[1761353586172,0.09026293,110870.0,110860.0,0.30799514]
[1761353586376,0.13662293,110870.0,110860.0,0.30799514]
[1761353587677,0.13662293,110870.0,110860.0,0.39818614]
[1761353590178,0.13662293,110870.0,110860.0,0.140351]
[1761353590371,0.13662293,110870.0,110860.0,0.39818614]
[1761353590575,0.13662293,110870.0,110860.0,0.30799514]
[1761353590776,0.14961293,110870.0,110860.0,0.30103514]
[1761353591179,0.17384951,110870.0,110860.0,0.30103514]
[1761353592476,0.17384951,110870.0,110860.0,0.17211757]
[1761353592783,0.19484986,110870.0,110860.0,0.48859757]
[1761353593479,0.35616472,110870.0,110860.0,0.17211757]
[1761353593980,0.22724715,110870.0,110860.0,0.17211757]
[1761353596086,0.35616472,110870.0,110860.0,0.17211757]
[1761353596478,0.33192814,110870.0,110860.0,0.0432]
[1761353596679,0.33192814,110870.0,110860.0,0.17211757]
[1761353597583,0.33192814,110870.0,110860.0,0.0432]
[1761353597783,0.149541,110860.0,110850.0,0.32609763]
[1761353597980,0.35612256,110860.0,110850.0,0.32609763]
[1761353598282,0.22720499,110860.0,110850.0,0.4550152]
[1761353599287,0.22720499,110860.0,110850.0,0.4570152]
[1761353599983,0.22720499,110860.0,110850.0,0.32809763]
[1761353600188,0.22720499,110860.0,110850.0,0.4570152]
[1761353603096,0.19482577,110860.0,110850.0,0.4570152]
[1761353603286,0.19482577,110860.0,110850.0,0.32809763]
[1761353603486,0.19482577,110860.0,110850.0,0.4570152]
[1761353605898,0.32374334,110860.0,110850.0,0.1405752]
[1761353606099,0.32374334,110860.0,110850.0,0.01165763]
[1761353606291,0.35612256,110860.0,110850.0,0.01165763]
[1761353608098,0.35612256,110860.0,110850.0,0.00965763]
[1761353608292,0.1264891,110850.0,110840.0,0.44539757]
[1761353608488,0.17054945,110850.0,110840.0,0.57431514]
[1761353609696,0.17054945,110850.0,110840.0,0.57631514]
[1761353610499,0.17054945,110850.0,110840.0,0.31848]
[1761353610800,0.17054945,110850.0,110840.0,0.58582648]
[1761353613506,0.08035035,110850.0,110840.0,0.67603378]
[1761353613704,0.17054955,110850.0,110840.0,0.67603378]
[1761353614203,0.17054955,110850.0,110840.0,0.58582648]
[1761353621311,0.29946712,110850.0,110840.0,0.002]
[1761353621500,0.32375154,110850.0,110840.0,0.002]
[1761353621697,0.1481954,110830.0,110820.0,0.04874684]
[1761353621903,0.29809009,110830.0,110820.0,7.903e-05]
[1761353622101,0.32237451,110830.0,110820.0,7.903e-05]
[1761353622398,0.1036636,110820.0,110810.0,0.14027957]
[1761353622600,0.19346514,110820.0,110810.0,0.011362]
[1761353622903,0.32238271,110820.0,110810.0,0.011362]
[1761353623402,0.0902321,110810.0,110800.0,0.45493684]
[1761353623600,0.16918922,110810.0,110800.0,0.45493684]
[1761353623807,0.29810679,110810.0,110800.0,0.45493684]
[1761353624109,0.16966973,110810.0,110800.0,0.45493684]
[1761353625798,0.1010763,110780.0,110760.0,0.06496309]
[1761353626002,0.13945784,110750.0,110740.0,0.00451488]
[1761353626206,0.1348289,110740.0,110730.0,0.09608]
[1761353626413,0.29049738,110740.0,110730.0,0.09608]
[1761353626614,0.53977821,110740.0,110730.0,0.05]
[1761353626815,0.81941413,110740.0,110730.0,0.05]
[1761353627014,0.81949057,110740.0,110730.0,0.05]
[1761353627213,0.56165543,110740.0,110730.0,0.05]
[1761353627710,0.291573,110740.0,110730.0,0.09608]
[1761353628213,0.82149057,110740.0,110730.0,0.05]
[1761353628714,0.72521508,110740.0,110730.0,0.09608]
[1761353629015,0.55283543,110740.0,110730.0,0.10983]
[1761353630113,0.53103465,110740.0,110730.0,0.10983]
[1761353633528,0.13103465,110740.0,110730.0,0.27138965]
[1761353633708,0.13103465,110740.0,110730.0,0.10983]
[1761353634811,0.00207644,110740.0,110730.0,0.36168675]
[1761353635011,0.00207644,110740.0,110730.0,0.27138965]
[1761353635206,0.00207644,110740.0,110730.0,0.36168675]
[1761353635914,0.00207644,110740.0,110730.0,0.27138965]
[1761353636116,0.04661644,110740.0,110730.0,0.10983]
[1761353636306,0.13690574,110740.0,110730.0,0.10983]
[1761353638813,0.02531644,110740.0,110730.0,0.47083054]
[1761353639814,0.00207644,110740.0,110730.0,0.47083054]
[1761353640410,0.02464644,110740.0,110730.0,0.47083054]
[1761353641717,0.11493524,110740.0,110730.0,0.47083054]
[1761353642210,0.09236524,110740.0,110730.0,0.47083054]
[1761353642414,0.13685524,110740.0,110730.0,0.10983]
[1761353642617,0.11390524,110740.0,110730.0,0.2001269]
[1761353642812,0.11390524,110740.0,110730.0,0.5189269]
[1761353643813,0.00207644,110740.0,110730.0,0.5189269]
[1761353644008,0.00207644,110740.0,110730.0,0.78963004]
[1761353645622,0.00207644,110740.0,110730.0,1.18963004]
[1761353646523,0.27215393,110770.0,110760.0,0.1489425]
[1761353646711,0.27215393,110770.0,110760.0,0.4677425]
[1761353647111,0.18188503,110770.0,110760.0,0.73844564]
[1761353647316,0.18188503,110770.0,110760.0,0.4677425]
[1761353647517,0.18195617,110770.0,110760.0,0.4677425]
[1761353648128,0.27222047,110770.0,110760.0,0.4677425]
[1761353648320,0.31671047,110770.0,110760.0,0.4677425]
[1761353648924,0.31971047,110770.0,110760.0,0.4677425]
[1761353651222,0.34194658,110770.0,110760.0,0.4677425]
[1761353651624,0.34194658,110770.0,110760.0,0.05867]
[1761353651926,0.34194658,110770.0,110760.0,0.4677428]
[1761353652121,0.34194658,110770.0,110760.0,0.37747]
[1761353652428,0.36616976,110770.0,110760.0,0.37747]
[1761353653027,0.36616976,110770.0,110760.0,0.05867]
[1761353653326,0.39854898,110770.0,110760.0,0.37743]
[1761353653528,0.39854898,110770.0,110760.0,0.37739]
[1761353654223,0.3743258,110770.0,110760.0,0.37739]
[1761353654527,0.42292174,110770.0,110760.0,0.37739]
[1761353655322,0.39054252,110770.0,110760.0,0.37739]
[1761353655830,0.39112827,110770.0,110760.0,0.37739]
[1761353656121,0.39112827,110770.0,110760.0,0.05867]
[1761353656428,0.35335233,110770.0,110760.0,0.04491]
[1761353656621,0.44824624,110770.0,110760.0,0.04491]
[1761353658724,0.44824624,110770.0,110760.0,0.02165]
[1761353659131,0.44824624,110770.0,110760.0,0.04491]
[1761353659327,0.43742624,110770.0,110760.0,0.05867]
[1761353660331,0.75614624,110770.0,110760.0,0.05867]
[1761353665027,0.75814624,110770.0,110760.0,0.05867]
[1761353665933,0.43942624,110770.0,110760.0,0.05867]
[1761353666733,0.45024624,110770.0,110760.0,0.02165]
[1761353666928,0.1347626,110760.0,110750.0,0.05867]
[1761353667136,0.15758446,110760.0,110750.0,0.05867]
[1761353668232,0.16058446,110760.0,110750.0,0.05867]
[1761353669136,0.22527837,110760.0,110750.0,0.05867]
[1761353669835,0.16058446,110760.0,110750.0,0.05867]
[1761353670436,0.22527837,110760.0,110750.0,0.05867]
[1761353670938,0.35446324,110760.0,110750.0,0.05867]
[1761353671830,0.20905137,110760.0,110750.0,0.05867]
[1761353674439,0.11877877,110760.0,110750.0,0.1489507]
[1761353674643,0.19292672,110760.0,110750.0,0.18785487]
[1761353674834,0.19292672,110760.0,110750.0,0.27813597]
[1761353675035,0.20907167,110760.0,110750.0,0.27813597]
[1761353675235,0.19292638,110760.0,110750.0,0.27813597]
[1761353678349,0.12815039,110760.0,110750.0,0.27813597]
[1761353678558,0.05814348,110760.0,110750.0,0.27813597]
[1761353678844,0.05814348,110760.0,110750.0,0.59649597]
[1761353679148,0.05006892,110760.0,110750.0,0.59649597]
[1761353681846,0.18571152,110760.0,110750.0,0.59649597]
[1761353682047,0.18571152,110760.0,110750.0,0.27813597]
[1761353682248,0.18571152,110760.0,110750.0,0.59645597]
[1761353682547,0.21803314,110760.0,110750.0,0.05867]
[1761353682851,0.33911624,110760.0,110750.0,0.05867]
[1761353683035,0.20993137,110760.0,110750.0,0.05867]
[1761353683238,0.24226856,110760.0,110750.0,0.05867]
[1761353688050,0.24226856,110760.0,110750.0,0.06867]
[1761353689647,0.21805979,110760.0,110750.0,0.19785487]
[1761353689843,0.21805946,110760.0,110750.0,0.19785487]
[1761353690047,0.19380165,110760.0,110750.0,0.19785487]
[1761353696454,0.19380165,110760.0,110750.0,0.06867]
[1761353696656,0.19380165,110760.0,110750.0,0.19785487]
[1761353696958,0.19380165,110760.0,110750.0,0.06867]
[1761353697155,0.24226856,110760.0,110750.0,0.06867]
[1761353697658,0.20993137,110760.0,110750.0,0.06867]
[1761353700457,0.24227057,110760.0,110750.0,0.06867]
[1761353700661,0.24227057,110760.0,110750.0,0.19783853]
[1761353701262,0.20993137,110760.0,110750.0,0.19783853]
[1761353701762,0.3390999,110760.0,110750.0,0.19783853]
[1761353701960,0.37143862,110760.0,110750.0,0.06867]
[1761353702160,0.3390999,110760.0,110750.0,0.19783853]
[1761353704169,0.37143695,110760.0,110750.0,0.06867]
[1761353704464,0.37143695,110760.0,110750.0,0.19783853]
[1761353704755,0.24226807,110760.0,110750.0,0.19783853]
[1761353704957,0.17268539,110760.0,110750.0,0.19783853]
[1761353705155,0.14034844,110760.0,110750.0,0.28811963]
[1761353705357,0.16241844,110760.0,110750.0,0.28811963]
[1761353705663,0.18415844,110760.0,110750.0,0.28811963]
[1761353705853,0.14034844,110760.0,110750.0,0.41728816]
[1761353706161,0.13834844,110760.0,110750.0,0.41728816]
[1761353709748,0.02382186,110760.0,110750.0,0.41728816]
[1761353709949,0.02432482,110770.0,110760.0,0.1481229]
[1761353710154,7.114e-05,110770.0,110760.0,0.85374849]
[1761353710351,7.114e-05,110770.0,110760.0,1.12457996]
[1761353711559,7.114e-05,110770.0,110760.0,1.25374849]
[1761353711760,0.19065318,110790.0,110780.0,0.05785]
[1761353712067,0.19065318,110790.0,110780.0,0.63426706]
[1761353712266,0.15831648,110790.0,110780.0,0.63426706]
[1761353712566,0.28748501,110790.0,110780.0,0.37593]
[1761353712753,0.28756315,110790.0,110780.0,0.50509853]
[1761353712958,0.28756315,110790.0,110780.0,0.50847703]
[1761353713158,0.29356315,110790.0,110780.0,0.50847703]
[1761353713362,0.16439462,110790.0,110780.0,0.50847703]
[1761353713562,0.29356315,110790.0,110780.0,0.50847703]
[1761353716073,0.29356315,110790.0,110780.0,0.50509853]
[1761353716864,0.29356315,110790.0,110780.0,0.18701853]
[1761353719977,0.16439462,110790.0,110780.0,0.18701853]
[1761353720176,0.14265462,110790.0,110780.0,0.40644366]
[1761353720369,0.14014094,110790.0,110780.0,0.40644366]
[1761353721166,0.14014094,110790.0,110780.0,0.31618706]
[1761353721366,0.14014094,110790.0,110780.0,0.18701853]
[1761353721969,0.16188937,110790.0,110780.0,0.18701853]
[1761353722778,0.21847975,110790.0,110780.0,0.18701853]
[1761353724777,0.21847975,110790.0,110780.0,0.05785]
[1761353724977,0.21847975,110790.0,110780.0,0.18701853]
[1761353727076,0.21847975,110790.0,110780.0,0.27727483]
[1761353727478,0.21847975,110790.0,110780.0,0.05785]
[1761353727685,0.34764828,110790.0,110780.0,0.05785]
[1761353727886,0.24732298,110790.0,110780.0,0.04487]
[1761353728181,0.37649151,110790.0,110780.0,0.04487]
[1761353731282,0.34415481,110790.0,110780.0,0.04487]
[1761353732685,0.35220104,110790.0,110780.0,0.04487]
[1761353733585,0.22303251,110790.0,110780.0,0.04487]
[1761353733886,0.35220104,110790.0,110780.0,0.04487]
[1761353734187,0.32798112,110790.0,110780.0,0.04487]
[1761353734685,0.37644803,110790.0,110780.0,0.04487]
[1761353734885,0.32798112,110790.0,110780.0,0.04487]
[1761353735186,0.37181803,110790.0,110780.0,0.05753]
[1761353735389,0.21842842,110790.0,110780.0,0.18669853]
[1761353735587,0.34759695,110790.0,110780.0,0.18669853]
[1761353736683,0.21842842,110790.0,110780.0,0.18669853]
[1761353737283,0.19218259,110790.0,110780.0,0.18669853]
[1761353737793,0.19118259,110790.0,110780.0,0.18669853]
[1761353737985,0.32035112,110790.0,110780.0,0.18669853]
[1761353738292,0.36881803,110790.0,110780.0,0.18669853]
[1761353739986,0.36889205,110790.0,110780.0,0.18669853]
[1761353740787,0.23972352,110790.0,110780.0,0.18669853]
[1761353740987,0.36889205,110790.0,110780.0,0.18669853]
[1761353743189,0.34122883,110790.0,110780.0,0.04487]
[1761353743391,0.34122883,110790.0,110780.0,0.05487]
[1761353745199,0.65878883,110790.0,110780.0,0.05487]
[1761353750704,0.65878883,110790.0,110780.0,0.06753]
[1761353750892,0.6865415,110790.0,110780.0,0.06753]
[1761353751098,0.55737297,110790.0,110780.0,0.19669853]
[1761353751292,0.6865415,110790.0,110780.0,0.19669853]
[1761353753106,0.6865415,110790.0,110780.0,0.06753]
[1761353753501,0.6865415,110790.0,110780.0,0.19669853]
[1761353754218,0.65415883,110790.0,110780.0,0.19669853]
[1761353756017,0.65422734,110790.0,110780.0,0.19669853]
[1761353758320,0.65885734,110790.0,110780.0,0.05487]
[1761353759117,0.65885734,110790.0,110780.0,0.18403853]
[1761353760015,0.65885734,110790.0,110780.0,0.19778853]
[1761353760718,0.52968881,110790.0,110780.0,0.06862]
[1761353761024,0.52668881,110790.0,110780.0,0.06862]
[1761353763824,0.52205881,110790.0,110780.0,0.06862]
[1761353766026,0.52205881,110790.0,110780.0,0.19773192]
[1761353767025,0.52205881,110790.0,110780.0,0.06862]
[1761353768428,0.20449881,110790.0,110780.0,0.06862]
[1761353768926,0.20449881,110790.0,110780.0,0.19773192]
[1761353769526,0.20449915,110790.0,110780.0,0.06862]
[1761353772731,0.23688894,110790.0,110780.0,0.06862]
[1761353773229,0.20449915,110790.0,110780.0,0.06862]
[1761353773625,0.20449915,110790.0,110780.0,0.01]
[1761353773626,0.35446807,110790.0,110780.0,0.01]
[1761353774819,0.33834915,110790.0,110780.0,0.01]
[1761353775433,0.36854915,110790.0,110780.0,0.01]
[1761353779638,0.23943723,110790.0,110780.0,0.03191]
[1761353779934,0.36854915,110790.0,110780.0,0.03191]
[1761353781034,0.23943723,110790.0,110780.0,0.054]
[1761353781230,0.23480723,110790.0,110780.0,0.19670192]
[1761353781536,0.23480723,110790.0,110780.0,0.06759]
[1761353788736,0.23480723,110790.0,110780.0,0.054]
[1761353791044,0.23480723,110790.0,110780.0,0.06759]
[1761353792244,0.21860818,110790.0,110780.0,0.06759]
[1761353796352,0.21860818,110790.0,110780.0,0.19670192]
[1761353799153,0.18840818,110790.0,110780.0,0.19670192]
[1761353800752,0.23698317,110790.0,110780.0,0.19670192]
[1761353805564,0.23698317,110790.0,110780.0,0.06759]
[1761353806163,0.23698317,110790.0,110780.0,0.19670192]
[1761353811765,0.18840818,110790.0,110780.0,0.19670192]
[1761353812674,0.23698317,110790.0,110780.0,0.19670192]
[1761353814176,0.23698317,110790.0,110780.0,0.06759]
[1761353814474,0.23698317,110790.0,110780.0,0.19670192]
[1761353819076,0.14673037,110790.0,110780.0,0.28695792]
[1761353819270,0.21284539,110790.0,110780.0,0.19670192]
[1761353819575,0.21284539,110790.0,110780.0,0.28695792]
[1761353822377,0.37707019,110790.0,110780.0,0.01]
[1761353822570,0.34469425,110790.0,110780.0,0.01]
[1761353822771,0.34473408,110790.0,110780.0,0.01]
[1761353823075,0.37493408,110790.0,110780.0,0.01]
[1761353823282,0.24578233,110790.0,110780.0,0.01]
[1761353823578,0.37493408,110790.0,110780.0,0.01]
[1761353823775,0.35872737,110790.0,110780.0,0.01]
[1761353824272,0.67588737,110790.0,110780.0,0.01]
[1761353824783,0.69209408,110790.0,110780.0,0.01]
[1761353825279,0.69209408,110790.0,110780.0,0.03238]
[1761353825479,0.69209408,110790.0,110780.0,0.01]
[1761353826777,0.69209408,110790.0,110780.0,0.03238]
[1761353826980,0.26732781,110790.0,110780.0,0.19662175]
[1761353827286,0.34790457,110790.0,110780.0,0.19662175]
[1761353828786,0.21875282,110790.0,110780.0,0.19662175]
[1761353828983,0.34790457,110790.0,110780.0,0.06747]
[1761353833587,0.34790457,110790.0,110780.0,0.19662175]
[1761353836485,0.35872457,110790.0,110780.0,0.19662175]
[1761353836789,0.35872457,110790.0,110780.0,0.06747]
[1761353838188,0.40729956,110790.0,110780.0,0.06747]
[1761353838591,0.37493408,110790.0,110780.0,0.06747]
[1761353839681,0.37493408,110790.0,110780.0,0.19662175]
[1761353840390,0.37493408,110790.0,110780.0,0.06747]
[1761353841190,0.37493408,110790.0,110780.0,0.19662175]
[1761353842189,0.23496233,110790.0,110780.0,0.19662175]
[1761353842394,0.39647202,110790.0,110780.0,0.06747]
[1761353842588,0.39647202,110790.0,110780.0,0.19662175]
[1761353843295,0.39647202,110790.0,110780.0,0.06747]
[1761353843496,0.39647202,110790.0,110780.0,0.19662175]
[1761353843794,0.39647202,110790.0,110780.0,0.06747]
[1761353843993,0.39647202,110790.0,110780.0,0.19662175]
[1761353844295,0.26732027,110790.0,110780.0,0.19662175]
[1761353845793,0.39647202,110790.0,110780.0,0.19662175]
[1761353845997,0.39647202,110790.0,110780.0,0.06747]
[1761353846293,0.39647202,110790.0,110780.0,0.19662175]
[1761353847191,0.36411408,110790.0,110780.0,0.19662175]
[1761353847796,0.23496233,110790.0,110780.0,0.19662175]
[1761353848197,0.2673265,110790.0,110780.0,0.19662175]
[1761353850190,0.39647825,110790.0,110780.0,0.06747]
[1761353850591,0.36411408,110790.0,110780.0,0.06747]
[1761353851102,0.36411408,110790.0,110780.0,0.19662175]
[1761353852104,0.23496233,110790.0,110780.0,0.19662175]
[1761353852292,0.36411408,110790.0,110780.0,0.19662175]
[1761353852799,0.380233,110790.0,110780.0,0.19662175]
[1761353853502,0.31553909,110790.0,110780.0,0.19662175]
[1761353853800,0.31553909,110790.0,110780.0,0.06747]
[1761353854001,0.31553909,110790.0,110780.0,0.19662175]
[1761353854705,0.31552538,110790.0,110780.0,0.19662175]
[1761353855201,0.38021929,110790.0,110780.0,0.19662175]
[1761353855700,0.38021929,110790.0,110780.0,0.06747]
[1761353855901,0.31552538,110790.0,110780.0,0.19662175]
[1761353856204,0.38021929,110790.0,110780.0,0.19662175]
[1761353857498,0.31552538,110790.0,110780.0,0.19662175]
[1761353860312,0.3641126,110790.0,110780.0,0.19662175]
[1761353862711,0.31552538,110790.0,110780.0,0.19662175]
[1761353862919,0.36411224,110790.0,110780.0,0.19662175]
[1761353864604,0.36411224,110790.0,110780.0,0.22152175]
[1761353865100,0.36411224,110790.0,110780.0,0.05728]
[1761353865412,0.37493224,110790.0,110780.0,0.05728]
[1761353865713,0.37493224,110790.0,110780.0,0.07844]
[1761353867010,0.36411224,110790.0,110780.0,0.09235]
[1761353867314,0.36411224,110790.0,110780.0,0.22150175]
[1761353872817,0.23496049,110790.0,110780.0,0.09235]
[1761353873018,0.2673555,110790.0,110780.0,0.3506535]
[1761353874222,0.2673555,110790.0,110780.0,0.22150175]
[1761353880319,0.36411224,110790.0,110780.0,0.22150175]
[1761353881626,0.23496049,110790.0,110780.0,0.22150175]
[1761353882027,0.36411224,110790.0,110780.0,0.22150175]
[1761353882723,0.23496049,110790.0,110780.0,0.09235]
[1761353885532,0.23496049,110790.0,110780.0,0.22144859]
[1761353888643,0.12500513,110790.0,110780.0,0.31170509]
[1761353888832,0.00206849,110800.0,110790.0,0.1040879]
[1761353889036,0.00206849,110800.0,110790.0,0.72200508]
[1761353889227,0.16584473,110810.0,110800.0,0.05644]
[1761353889427,0.16584473,110810.0,110800.0,0.18553859]
[1761353890235,0.1334465,110810.0,110800.0,0.18553859]
[1761353894141,0.1334465,110810.0,110800.0,0.21043859]
[1761353895541,0.1334465,110810.0,110800.0,0.08134]
[1761353900938,0.15479159,110810.0,110800.0,0.08134]
[1761353902744,0.20337845,110810.0,110800.0,0.08134]
[1761353908644,0.20337845,110810.0,110800.0,0.21043859]
[1761353908845,0.15479159,110810.0,110800.0,0.21043859]
[1761353909153,0.20337845,110810.0,110800.0,0.21043859]